bitfinex-derivatives/quotes_SOLF0:USTF0_20240926
["timestamp","ask_amount","ask_price","bid_price","bid_amount"]
[1727386453586,3.2204,155.22,155.19,13.1109]
[1727386453780,3.2204,155.22,155.2,4.57273264]
[1727386454083,3.2204,155.22,155.19,13.1109]
[1727386454287,3.2204,155.22,155.2,4.57230375]
[1727386454488,3.2204,155.22,155.19,13.1109]
[1727386454687,3.2204,155.22,155.2,4.57230494]
[1727386454894,3.2204,155.22,155.19,13.1109]
[1727386455187,3.2204,155.22,155.2,4.57199849]
[1727386455387,3.2204,155.22,155.19,13.1109]
[1727386455586,3.2204,155.22,155.2,4.57200335]
[1727386455787,3.2204,155.22,155.19,13.1109]
[1727386455987,3.2204,155.22,155.2,4.57203303]
[1727386456286,3.2204,155.22,155.19,13.1109]
[1727386456489,3.2204,155.22,155.2,4.57199763]
[1727386456691,3.2204,155.22,155.19,13.1109]
[1727386456890,3.2204,155.22,155.2,7.791714]
[1727386457090,3.2204,155.22,155.2,3.2208]
[1727386457593,2.6222,155.29,155.21,13.1106]
[1727386457889,9.89,155.27,155.21,13.1106]
[1727386459293,3.2201,155.24,155.21,13.1106]
[1727386460691,3.2201,155.24,155.21,3.2206]
[1727386460890,3.2201,155.24,155.21,13.1106]
[1727386462794,3.2202,155.23,155.21,9.89]
[1727386464097,3.2202,155.23,155.21,13.1106]
[1727386464294,3.22,155.24,155.21,13.1106]
[1727386466797,3.2203,155.23,155.2,3.2208]
[1727386466996,3.2203,155.23,155.21,4.56222273]
[1727386467198,3.2203,155.23,155.2,13.1108]
[1727386467398,3.2203,155.23,155.21,4.56240138]
[1727386467597,3.2203,155.23,155.2,13.1108]
[1727386467910,3.2201,155.24,155.21,3.2206]
[1727386468102,3.2201,155.24,155.21,7.78294721]
[1727386468498,3.2201,155.24,155.21,3.2206]
[1727386475708,3.2202,155.23,155.2,13.1107]
[1727386475906,3.2202,155.23,155.21,4.56371204]
[1727386476111,3.2202,155.23,155.2,13.1107]
[1727386476410,3.2202,155.23,155.21,4.56386895]
[1727386476708,3.2202,155.23,155.21,3.2206]
[1727386477108,2.6222,155.29,155.07,59.7120908]
[1727386477415,6.439,155.27,155.14,9.89]
[1727386477641,3.17122149,155.27,155.15,18.12420717]
[1727386477907,14.59334386,155.29,155.18,9.89]
[1727386478101,9.89,155.24,155.18,9.89]
[1727386478300,5.85400371,155.29,155.19,9.89]
[1727386478507,9.89,155.25,155.19,9.89]
[1727386478699,3.2203,155.23,155.19,9.89]
[1727386478902,5.85400371,155.29,155.2,9.89]
[1727386479107,9.89,155.26,155.2,9.89]
[1727386479307,3.2199,155.25,155.2,9.89]
[1727386479806,9.89,155.26,155.21,4.5624292]
[1727386480007,9.89,155.26,155.2,9.89]
[1727386480311,9.89,155.26,155.21,4.56241189]
[1727386480513,9.89,155.26,155.2,9.89]
[1727386480809,3.22,155.24,155.21,4.56298195]
[1727386480999,3.22,155.24,155.2,9.89]
[1727386481205,3.22,155.24,155.21,4.56291371]
[1727386481500,3.22,155.24,155.2,9.89]
[1727386481700,3.22,155.24,155.21,4.56277253]
[1727386481906,3.22,155.24,155.2,9.89]
[1727386482205,3.22,155.24,155.21,4.56290247]
[1727386482406,3.22,155.24,155.2,9.89]
[1727386482710,3.22,155.24,155.21,4.56242697]
[1727386482908,3.22,155.24,155.2,9.89]
[1727386483108,3.22,155.24,155.21,4.56245125]
[1727386483307,3.22,155.24,155.2,9.89]
[1727386483511,3.22,155.24,155.21,4.56268055]
[1727386483811,3.22,155.24,155.2,9.89]
[1727386484010,3.22,155.24,155.21,4.56268055]
[1727386484313,3.22,155.24,155.2,9.89]
[1727386484512,3.22,155.24,155.21,4.56320777]
[1727386484711,3.22,155.24,155.2,9.89]
[1727386484907,3.22,155.24,155.21,4.56310682]
[1727386485111,3.22,155.24,155.2,9.89]
[1727386485415,3.22,155.24,155.21,4.56340247]
[1727386485612,3.22,155.24,155.2,9.89]
[1727386485911,3.22,155.24,155.21,4.56350517]
[1727386486112,3.22,155.24,155.2,9.89]
[1727386486316,3.22,155.24,155.21,4.56380086]
[1727386486512,3.22,155.24,155.2,9.89]
[1727386486716,3.22,155.24,155.21,4.56340122]
[1727386486914,3.22,155.24,155.2,9.89]
[1727386487111,3.22,155.24,155.21,4.56319597]
[1727386487364,3.22,155.24,155.2,9.89]
[1727386488010,3.22,155.24,155.21,4.56333754]
[1727386488216,3.22,155.24,155.2,9.89]
[1727386488409,9.89,155.26,155.21,4.56331619]
[1727386488614,9.89,155.26,155.2,9.89]
[1727386488914,3.2203,155.23,155.21,4.56331619]
[1727386489108,3.2203,155.23,155.2,9.89]
[1727386489311,3.2203,155.23,155.21,4.56355129]
[1727386489513,3.2203,155.23,155.2,9.89]
[1727386489710,3.2203,155.23,155.21,4.56339128]
[1727386489915,3.2203,155.23,155.2,9.89]
[1727386490118,3.2203,155.23,155.21,4.56347568]
[1727386490314,3.2203,155.23,155.2,9.89]
[1727386490912,3.2203,155.23,155.21,4.56369396]
[1727386491109,3.2203,155.23,155.2,9.89]
[1727386491317,3.2203,155.23,155.21,4.56379512]
[1727386491617,3.2203,155.23,155.2,9.89]
[1727386491808,3.2204,155.22,155.18,3.2211]
[1727386492009,9.89,155.25,155.2,9.89]
[1727386492516,9.89,155.25,155.21,4.56272827]
[1727386492723,9.89,155.25,155.2,9.89]
[1727386492925,3.2205,155.22,155.2,9.89]
[1727386496226,3.2203,155.23,155.2,9.89]
[1727386496423,71.28896397,155.27,155.22,9.89]
[1727386496626,71.28896397,155.27,155.25,9.89]
[1727386497024,74.50846397,155.27,155.25,9.89]
[1727386497419,71.28896397,155.27,155.25,9.89]
[1727386498427,3.2195,155.26,155.22,3.2203]
[1727386498627,3.2195,155.26,155.24,9.89]
[1727386501230,71.28896397,155.27,155.24,13.1099]
[1727386501428,71.28896397,155.27,155.26,9.89]
[1727386502529,74.50826397,155.27,155.26,9.89]
[1727386507237,74.50826397,155.27,155.24,13.1099]
[1727386510841,6.4353,155.36,155.26,9.89]
[1727386511039,9.89,155.35,155.28,9.89]
[1727386511241,13.18273134,155.35,155.28,9.89]
[1727386511443,3.2189,155.29,155.28,9.89]
[1727386512439,3.2189,155.29,155.27,9.89]
[1727386519846,3.2188,155.3,155.28,9.89]
[1727386520048,10.24407282,155.38,155.28,9.89]
[1727386520249,12.5373,155.37,155.31,9.89]
[1727386521750,3.2183,155.32,155.31,9.89]
[1727386522981,3.2183,155.32,155.3,9.89]
[1727386525251,3.2176,155.36,155.31,9.89]
[1727386525451,3.2176,155.36,155.34,9.89]
[1727386526756,3.2177,155.35,155.34,9.89]
[1727386529658,3.2175,155.36,155.34,9.89]
[1727386529958,3.28465203,155.43,155.35,9.89]
[1727386530149,3.2169,155.39,155.35,9.89]
[1727386530456,3.26742053,155.42,155.37,9.89]
[1727386531755,3.2171,155.38,155.37,9.89]
[1727386532058,90.58798161,155.56,155.32,6.4365]
[1727386532253,9.89,155.5,155.39,3.2167]
[1727386532447,0.96567622,155.49,155.38,3.14395637]
[1727386532652,10.85567622,155.49,155.42,9.89]
[1727386532958,10.85567622,155.48,155.41,9.89]
[1727386533253,9.89,155.48,155.41,9.89]
[1727386533647,3.2158,155.45,155.41,9.89]
[1727386533847,3.15328466,155.46,155.41,9.89]
[1727386534052,9.89,155.48,155.41,9.89]
[1727386534660,13.08059783,155.48,155.41,9.89]
[1727386535158,3.2158,155.45,155.41,9.89]
[1727386536154,3.2158,155.44,155.41,9.89]
[1727386537953,3.2158,155.44,155.43,9.89]
[1727386539356,1.3318,155.52,155.43,9.89]
[1727386539667,1.3318,155.52,155.46,9.89]
[1727386539965,14.42749265,155.52,155.46,9.89]
[1727386540259,3.2152,155.47,155.46,9.89]
[1727386541567,3.2155,155.46,155.44,9.89]
[1727386542357,3.2156,155.45,155.41,3.2164]
[1727386542561,9.89,155.49,155.42,9.89]
[1727386542761,3.19896113,155.5,155.42,9.89]
[1727386542962,3.2158,155.45,155.42,9.89]
[1727386543458,3.216,155.44,155.42,9.89]
[1727386548560,3.2161,155.43,155.39,3.2168]
[1727386548966,3.2161,155.43,155.4,9.89]
[1727386556092,13.05389962,155.46,155.4,9.89]
[1727386557773,3.2163,155.42,155.4,9.89]
[1727386560573,9.89,155.43,155.37,14.3746]
[1727386561173,3.2167,155.4,155.37,14.3746]
[1727386565976,3.2169,155.39,155.37,14.3746]
[1727386566181,13.04410272,155.43,155.37,14.3746]
[1727386566382,13.04410272,155.43,155.38,9.89]
[1727386566582,3.2168,155.4,155.38,9.89]
[1727386568883,3.2165,155.41,155.38,13.1069]
[1727386569078,3.2165,155.41,155.4,9.89]
[1727386570283,3.2163,155.42,155.4,9.89]
[1727386571784,3.2161,155.43,155.41,9.89]
[1727386571988,1.2853,155.49,155.37,1.2674]
[1727386571989,1.2853,155.49,155.43,9.89]
[1727386572189,1.2853,155.49,155.44,9.89]
[1727386572385,4.5352774,155.49,155.44,9.89]
[1727386572585,3.2155,155.46,155.44,9.89]
[1727386573587,3.2156,155.45,155.41,3.2164]
[1727386573788,3.2156,155.45,155.43,9.89]
[1727386574491,3.2166,155.41,155.37,4.4846]
[1727386574697,3.2166,155.41,155.37,1.2674]
[1727386575092,3.2166,155.41,155.38,9.89]
[1727386576290,3.2164,155.42,155.39,9.89]
[1727386577695,3.2161,155.43,155.39,13.1068]
[1727386578090,3.2158,155.44,155.41,9.89]
[1727386578693,3.2158,155.44,155.37,1.2674]
[1727386578694,3.2682005,155.51,155.43,9.89]
[1727386578996,11.2218,155.52,155.45,9.89]
[1727386579496,9.89,155.5,155.43,9.89]
[1727386579692,13.05074047,155.5,155.43,9.89]
[1727386579898,3.215,155.48,155.43,9.89]
[1727386580099,3.215,155.48,155.43,11.1947]
[1727386580598,3.2152,155.47,155.43,11.1947]
[1727386581028,9.89,155.49,155.43,11.1947]
[1727386581198,3.2147,155.5,155.46,9.89]
[1727386582102,3.2148,155.49,155.46,9.89]
[1727386582402,9.89,155.48,155.43,1.3047]
[1727386583400,9.89,155.48,155.43,11.1947]
[1727386583803,3.29363292,155.5,155.43,1.3047]
[1727386583804,9.89,155.47,155.43,1.3047]
[1727386584514,3.2154,155.46,155.43,1.3047]
[1727386585099,9.89,155.47,155.43,1.3047]
[1727386585306,3.2154,155.46,155.43,1.3047]
[1727386586698,3.2156,155.45,155.43,1.3047]
[1727386587500,90.58798161,155.56,155.41,1.3224]
[1727386587705,9.89,155.51,155.45,9.89]
[1727386588003,3.23937538,155.5,155.45,9.89]
[1727386588799,13.12937538,155.5,155.43,11.19]
[1727386589105,3.2154,155.47,155.43,11.19]
[1727386589302,90.58798161,155.56,155.43,11.19]
[1727386589503,9.89,155.5,155.43,11.19]
[1727386589708,3.2154,155.47,155.43,11.19]
[1727386592199,3.2151,155.48,155.43,14.406]
[1727386595010,3.2152,155.47,155.43,14.406]
[1727386597407,71.25798161,155.56,155.44,3.2157]
[1727386597606,9.89,155.5,155.44,3.2157]
[1727386597912,3.2151,155.48,155.44,3.2157]
[1727386599906,9.89,155.5,155.44,3.2157]
[1727386600110,9.89,155.5,155.43,11.19]
[1727386600929,3.2155,155.46,155.43,11.19]
[1727386601111,9.89,155.5,155.44,3.2158]
[1727386601310,9.89,155.51,155.44,3.2158]
[1727386601614,13.11703854,155.51,155.44,3.2158]
[1727386602814,3.2151,155.48,155.44,3.2158]
[1727386604712,3.2149,155.49,155.45,9.89]
[1727386605313,13.11703854,155.51,155.45,9.89]
[1727386605616,3.215,155.48,155.45,9.89]
[1727386609815,3.2149,155.49,155.45,13.1056]
[1727386612515,3.2146,155.5,155.46,3.2154]
[1727386619820,3.2146,155.5,155.45,9.89]
[1727386620125,3.2146,155.5,155.47,3.2152]
[1727386620924,71.25798161,155.56,155.48,3.215]
[1727386620925,3.2145,155.51,155.48,3.215]
[1727386621532,3.2145,155.51,155.47,3.2151]
[1727386622521,9.89,155.55,155.48,9.89]
[1727386622718,9.89,155.55,155.49,9.89]
[1727386622921,81.14798161,155.56,155.49,9.89]
[1727386623520,3.2141,155.53,155.49,13.1047]
[1727386624428,3.2138,155.54,155.51,9.89]
[1727386625628,71.25798161,155.56,155.51,9.89]
[1727386626030,74.47148161,155.56,155.52,3.2141]
[1727386626236,74.47148161,155.56,155.53,9.89]
[1727386626930,71.25798161,155.56,155.53,13.1038]
[1727386627134,2.6825,155.64,155.54,9.89]
[1727386627327,9.89,155.62,155.55,1.2781]
[1727386627535,9.89,155.62,155.56,9.89]
[1727386628129,9.89,155.62,155.55,1.2781]
[1727386628436,9.89,155.6,155.55,11.1681]
[1727386630729,3.213,155.58,155.55,11.1681]
[1727386632541,2.6825,155.64,155.49,9.89]
[1727386632542,9.89,155.56,155.49,9.89]
[1727386633338,9.89,155.56,155.5,9.89]
[1727386633339,3.2141,155.53,155.5,9.89]
[1727386637441,3.2138,155.54,155.5,9.89]
[1727386639439,3.2138,155.54,155.5,13.1045]
[1727386642245,3.2138,155.54,155.51,9.89]
[1727386642550,3.2138,155.54,155.53,9.89]
[1727386643840,6.424,155.63,155.53,9.89]
[1727386644036,0.96463836,155.62,155.56,9.89]
[1727386644242,9.89,155.63,155.56,9.89]
[1727386644542,3.2129,155.59,155.56,9.89]
[1727386644947,9.89,155.63,155.56,9.89]
[1727386645137,9.89,155.62,155.55,9.89]
[1727386645338,9.89,155.6,155.55,9.89]
[1727386646249,3.2132,155.57,155.55,9.89]
[1727386646547,3.21984137,155.61,155.52,4.5407]
[1727386646548,9.89,155.59,155.52,11.2166]
[1727386646949,3.2135,155.56,155.52,11.2166]
[1727386647454,3.2135,155.56,155.52,1.3266]
[1727386647748,3.2135,155.56,155.53,9.89]
[1727386652552,3.2136,155.55,155.53,9.89]
[1727386652758,9.89,155.58,155.52,1.3266]
[1727386653148,3.2137,155.55,155.52,1.3266]
[1727386653762,9.89,155.56,155.51,11.1802]
[1727386654054,9.89,155.56,155.51,1.2902]
[1727386654950,3.2141,155.53,155.51,1.2902]
[1727386655751,9.89,155.53,155.47,1.3572]
[1727386655947,9.89,155.53,155.47,11.2472]
[1727386656149,9.89,155.53,155.47,9.89]
[1727386656456,3.2148,155.49,155.47,9.89]
[1727386656749,3.215,155.48,155.45,11.2608]
[1727386656954,9.89,155.51,155.45,14.4764]
[1727386657353,3.2149,155.49,155.45,11.2608]
[1727386657950,3.2149,155.49,155.46,9.89]
[1727386659555,3.215,155.48,155.46,9.89]
[1727386664067,3.215,155.48,155.45,1.3708]
[1727386664258,3.215,155.48,155.45,11.2608]
[1727386667474,3.215,155.49,155.45,14.4762]
[1727386667764,9.89,155.51,155.45,14.4762]
[1727386668564,3.2148,155.5,155.46,3.2154]
[1727386668958,9.89,155.51,155.46,3.2154]
[1727386669163,3.2148,155.5,155.46,3.2154]
[1727386670967,3.2148,155.49,155.46,3.2154]
[1727386672270,3.2148,155.49,155.45,14.4763]
[1727386672471,3.2148,155.49,155.45,11.2608]
[1727386672967,3.2148,155.49,155.46,3.2153]
[1727386673470,3.2148,155.49,155.45,11.2608]
[1727386673471,3.2145,155.51,155.48,13.1049]
[1727386673766,3.2145,155.51,155.49,9.89]
[1727386674869,9.89,155.55,155.49,13.1046]
[1727386675065,3.23086495,155.57,155.51,9.89]
[1727386675260,9.89,155.56,155.51,9.89]
[1727386675667,3.2139,155.54,155.51,9.89]
[1727386678679,9.89,155.56,155.49,13.1047]
[1727386679577,3.214,155.53,155.49,13.1047]
[1727386683578,3.2139,155.54,155.5,3.2146]
[1727386684684,3.214,155.53,155.49,13.1047]
[1727386685692,3.214,155.53,155.49,3.2147]
[1727386685889,3.214,155.53,155.49,13.1047]
[1727386686483,3.2142,155.52,155.49,13.1047]
[1727386692486,3.214,155.53,155.5,3.2145]
[1727386693787,9.89,155.55,155.49,13.1047]
[1727386694190,3.2141,155.53,155.49,13.1047]
[1727386694385,9.89,155.55,155.49,13.1047]
[1727386695093,9.89,155.55,155.49,3.2147]
[1727386695894,3.2141,155.53,155.49,3.2147]
[1727386700590,9.89,155.56,155.48,13.1049]
[1727386700591,3.2142,155.52,155.48,13.1049]
[1727386700791,3.2142,155.52,155.48,9.89]
[1727386701898,3.2142,155.52,155.49,3.2148]
[1727386702399,3.214,155.53,155.49,3.2148]
[1727386704601,3.2142,155.52,155.49,3.2148]
[1727386709207,3.2141,155.53,155.49,3.2148]
[1727386709820,9.89,155.55,155.5,9.89]
[1727386709821,3.2138,155.54,155.5,9.89]
[1727386710507,3.2138,155.54,155.5,13.1044]
[1727386711711,74.4136343,155.59,155.5,9.89]
[1727386711904,9.89,155.57,155.51,9.89]
[1727386712310,3.2134,155.56,155.51,9.89]
[1727386712507,3.2134,155.56,155.52,9.89]
[1727386713316,9.89,155.58,155.52,9.89]
[1727386713317,3.2132,155.57,155.52,13.104]
[1727386714012,13.103,155.58,155.53,3.2138]
[1727386714312,3.213,155.58,155.54,9.89]
[1727386716709,13.103,155.58,155.53,3.2138]
[1727386716913,9.89,155.55,155.45,9.89]
[1727386717114,9.89,155.53,155.45,19.75930602]
[1727386717405,9.89,155.51,155.45,15.7314]
[1727386718014,9.89,155.51,155.46,3.2154]
[1727386718615,9.89,155.51,155.45,5.8415]
[1727386719919,3.2148,155.49,155.45,5.8415]
[1727386720519,2.613,155.62,155.48,9.89]
[1727386720715,9.89,155.6,155.53,9.89]
[1727386722221,3.213,155.58,155.53,9.89]
[1727386722422,19.33,155.67,155.53,9.89]
[1727386722622,9.89,155.6,155.53,9.89]
[1727386723023,3.2127,155.6,155.54,3.2137]
[1727386723225,13.1027,155.6,155.54,3.2137]
[1727386723519,3.2127,155.6,155.54,3.2137]
[1727386724318,3.2127,155.59,155.53,13.1039]
[1727386724512,9.89,155.58,155.51,12.4806]
[1727386725723,3.2129,155.58,155.52,3.214]
[1727386725924,3.2129,155.58,155.53,9.89]
[1727386726423,9.89,155.59,155.53,13.1039]
[1727386726424,3.2128,155.59,155.53,13.1039]
[1727386727625,19.33,155.71,155.58,9.89]
[1727386727826,9.89,155.65,155.58,9.89]
[1727386728225,9.89,155.6,155.53,4.51930976]
[1727386728418,9.89,155.57,155.51,9.89]
[1727386728828,13.1033,155.57,155.51,13.1042]
[1727386729630,13.1033,155.57,155.52,3.2141]
[1727386729826,3.2133,155.57,155.52,3.2141]
[1727386730021,3.2133,155.57,155.53,9.89]
[1727386730221,3.213,155.58,155.53,9.89]
[1727386730819,3.2132,155.57,155.53,9.89]
[1727386733428,9.89,155.61,155.54,9.89]
[1727386734019,3.2129,155.58,155.54,9.89]
[1727386734523,3.2129,155.58,155.54,13.1037]
[1727386735523,3.2129,155.58,155.54,9.89]
[1727386736721,3.2129,155.58,155.53,13.1039]
[1727386738426,9.89,155.59,155.53,9.89]
[1727386738728,9.89,155.59,155.52,13.1041]
[1727386739229,3.2133,155.57,155.52,13.1041]
[1727386740435,3.2134,155.56,155.52,3.2141]
[1727386740629,3.2134,155.56,155.53,9.89]
[1727386742423,3.214,155.53,155.5,2.5962]
[1727386742731,9.89,155.56,155.5,2.5962]
[1727386743031,9.89,155.54,155.5,2.5962]
[1727386743232,3.2143,155.52,155.5,2.5962]
[1727386743826,3.214,155.53,155.5,2.5962]
[1727386744330,9.89,155.54,155.5,2.5962]
[1727386745134,3.2142,155.52,155.5,2.5962]
[1727386745335,9.89,155.54,155.5,1.3263]
[1727386745628,3.2144,155.51,155.5,1.3263]
[1727386745831,3.2144,155.51,155.47,9.89]
[1727386746234,3.2147,155.5,155.46,12.5995]
[1727386747538,3.2144,155.51,155.47,9.89]
[1727386748133,3.2144,155.51,155.47,3.2152]
[1727386748434,3.2144,155.51,155.47,13.1052]
[1727386750433,3.2144,155.51,155.47,9.89]
[1727386750834,3.2146,155.5,155.47,9.89]
[1727386757644,72.12040979,155.57,155.49,9.89]
[1727386757944,81.04880979,155.57,155.5,9.89]
[1727386758145,81.04880979,155.57,155.52,9.89]
[1727386758546,81.04880979,155.57,155.51,9.89]
[1727386759752,3.2137,155.55,155.51,9.89]
[1727386760150,81.04880979,155.57,155.51,13.1042]
[1727386760553,3.2135,155.56,155.51,13.1042]
[1727386761153,9.89,155.52,155.46,2.7095]
[1727386761355,71.15880979,155.57,155.46,2.7095]
[1727386761356,9.89,155.5,155.46,2.7095]
[1727386761659,3.2149,155.49,155.46,2.7095]
[1727386772560,9.89,155.51,155.46,5.9248]
[1727386773470,9.89,155.5,155.46,2.7095]
[1727386774865,3.2148,155.49,155.46,2.7095]
[1727386783473,9.89,155.47,155.39,6.27264586]
[1727386783675,9.89,155.47,155.4,11.2132]
[1727386783869,3.2155,155.46,155.42,3.2161]
[1727386784270,9.89,155.47,155.41,6.27432732]
[1727386784471,3.2157,155.45,155.41,9.49062732]
[1727386784777,3.2157,155.45,155.41,7.69636506]
[1727386785279,3.2157,155.45,155.41,3.2163]
[1727386785670,3.2157,155.45,155.42,9.89]
[1727386788480,3.2157,155.45,155.41,3.2163]
[1727386790377,3.2157,155.45,155.41,7.69418374]
[1727386791075,3.2157,155.45,155.41,3.2163]
[1727386791475,3.2157,155.45,155.41,7.69397701]
[1727386792783,3.2157,155.45,155.42,3.2162]
[1727386797987,3.2157,155.45,155.43,3.216]
[1727386798382,3.2155,155.46,155.43,3.216]
[1727386800386,0.9605,155.56,155.44,10.74911454]
[1727386800387,9.89,155.49,155.44,10.74911454]
[1727386800591,9.89,155.5,155.44,9.89]
[1727386800781,9.89,155.5,155.42,5.86136413]
[1727386800988,7.3873,155.56,155.42,22.02182155]
[1727386800989,9.89,155.49,155.42,22.02182155]
[1727386801187,9.89,155.49,155.42,15.75136413]
[1727386801388,3.2152,155.47,155.44,3.2157]
[1727386802291,3.2154,155.46,155.44,3.2157]
[1727386802887,3.2153,155.47,155.44,3.2157]
[1727386803289,3.2155,155.46,155.43,3.2159]
[1727386804395,3.2153,155.47,155.44,3.2158]
[1727386806389,3.2154,155.46,155.43,13.106]
[1727386806790,3.2154,155.46,155.43,3.216]
[1727386807591,9.89,155.46,155.41,6.27618107]
[1727386807785,26.6873,155.56,155.42,4.48219852]
[1727386807990,9.89,155.48,155.42,9.89]
[1727386808191,3.2154,155.47,155.44,3.2158]
[1727386808390,9.89,155.48,155.41,6.27816656]
[1727386808593,13.1055,155.46,155.42,3.2161]
[1727386809395,9.89,155.46,155.41,3.2163]
[1727386809896,9.89,155.46,155.4,11.2132]
[1727386810195,9.89,155.46,155.41,4.48346741]
[1727386810595,3.2158,155.45,155.42,3.2162]
[1727386810996,9.89,155.46,155.4,11.2132]
[1727386811294,3.216,155.44,155.41,3.2164]
[1727386811891,3.216,155.43,155.4,14.4298]
[1727386812095,3.216,155.43,155.4,4.5398]
[1727386814501,3.216,155.43,155.4,3.2166]
[1727386814698,9.89,155.43,155.39,6.28042785]
[1727386815000,9.89,155.43,155.37,6.28150344]
[1727386815200,3.2164,155.42,155.38,13.98354562]
[1727386815394,3.2164,155.42,155.39,4.48514218]
[1727386815599,3.2164,155.42,155.38,3.2169]
[1727386815797,3.2166,155.41,155.39,4.48479627]
[1727386816004,9.89,155.42,155.36,59.63380182]
[1727386816204,3.2167,155.4,155.37,4.48551695]
[1727386816402,3.2167,155.4,155.36,59.63380182]
[1727386816705,3.2167,155.4,155.37,4.48535601]
[1727386816904,3.2167,155.4,155.36,59.63380182]
[1727386817405,3.2167,155.4,155.37,3.2171]
[1727386820002,3.217,155.39,155.36,62.85130182]
[1727386822414,13.1071,155.38,155.35,3.2175]
[1727386823709,9.89,155.38,155.33,1.3658]
[1727386824509,3.2174,155.37,155.34,3.2178]
[1727386831216,9.89,155.4,155.34,9.89]
[1727386831517,9.89,155.4,155.33,1.3658]
[1727386831720,3.2171,155.38,155.35,3.2177]
[1727386838028,3.2171,155.38,155.36,3.2175]
[1727386838318,9.89,155.42,155.35,9.89]
[1727386838720,3.2166,155.41,155.37,3.2172]
[1727386840827,13.1066,155.41,155.37,3.2172]
[1727386841025,3.2167,155.4,155.37,3.2172]
[1727386848534,13.1067,155.4,155.37,3.2172]
[1727386853530,3.2166,155.41,155.34,16.97116494]
[1727386853730,3.2166,155.41,155.36,9.89]
[1727386854933,3.2166,155.41,155.38,3.2169]
[1727386861537,13.1063,155.42,155.38,3.2169]
[1727386861742,13.1063,155.42,155.39,3.2168]
[1727386862442,13.1063,155.42,155.38,3.217]
[1727386867243,13.1063,155.42,155.36,9.89]
[1727386867445,13.1063,155.42,155.39,3.2168]
[1727386867747,9.89,155.42,155.39,3.2168]
[1727386871153,3.1677596,155.48,155.4,3.2166]
[1727386871357,9.89,155.44,155.4,3.2166]
[1727386872355,3.19718655,155.48,155.41,3.2164]
[1727386872555,9.89,155.48,155.42,9.89]
[1727386873250,3.2153,155.47,155.43,3.2159]
[1727386874454,3.2154,155.46,155.42,13.1062]
[1727386874653,9.89,155.47,155.42,13.1062]
[1727386875760,3.2156,155.45,155.42,13.1062]
[1727386877365,3.2155,155.46,155.42,13.1062]
[1727386877956,9.89,155.43,155.32,3.9115]
[1727386878164,9.89,155.43,155.36,9.89]
[1727386878357,9.89,155.43,155.37,6.28205267]
[1727386878559,9.89,155.43,155.38,4.48563118]
[1727386878755,13.1066,155.41,155.37,9.50050518]
[1727386878957,13.1066,155.41,155.37,3.2172]
[1727386879166,9.89,155.41,155.37,3.2172]
[1727386880754,3.2167,155.4,155.36,13.1074]
[1727386880960,3.2167,155.4,155.37,4.48854081]
[1727386881158,3.2167,155.4,155.36,13.1074]